Workbook

Sheet rezultati 2014
A1: anketa - kvantitativna analiza
B2: fantje povp | C2: punce povp | D2: 1 | E2: 2 | F2: 3 | G2: 4 | H2: 5 | Q2: fantje povp | R2: 1 | S2: 2 | T2: 3 | U2: 4 | V2: 5 | W2: 6 | X2: 7 | Y2: 8 | AI2: punce povp
A3: let v četi | B3: =Q3 -> 2.2 | C3: =AI3 -> 1.625 | D3: 2 | E3: 3 | F3: 1 | G3: 4 | H3: 1 | Q3: =AVERAGE(D3:P3) -> 2.2 | R3: 2 | S3: 1 | T3: 1 | U3: 2 | V3: 1 | W3: 1 | X3: 1 | Y3: 4 | AI3: =AVERAGE(R3:AG3) -> 1.625
A4: Povej tri najboljše stvari, ki bi jih rad delal letos pri skavtih | D4: zajebaval, hrana, pijača | E4: zabava, hrana, pijača | F4: zabava, hrana, pijača | G4: paintball | H4: postavljanje ognjev, šotorov in kuhinje | R4: srečanja z Radovljico | S4: srečanja z drugimi skavti | T4: srečanja z drugimi skavti | U4: lov na zaklad, več petja | V4: lov na zaklad, iskanje listkov po mestu | W4: lov na zaklad, iskanje listkov po mestu, več petja | X4: pejmo v kino, kuhanje, tekmovanje, kdo naredi najbolj kul snežaka | Y4: pot preživetja, IV izziv, delavnice
A5: Katero skavtsko znanje bi si želel letos naučiti, kaj bi si želel poizkusiti? | D5: pasti za živali | E5: pasti za živali | F5: pasti za živali | G5: igranja kitare | H5: vozli, vezave | U5: igranja kitare, užitne rastline | X5: prva pomoč | Y5: vse, kar letos
A6: Česa si v primerjavi z lanskim letom želiš več? | F6: zabave | G6: vodovih potepov, druženja, srečanj | H6: lepšega vremena | R6: srečanja z Radovljico | S6: srečanja z drugimi skavti | T6: srečanja z drugimi skavti | V6: lov na zaklad, več iger | W6: lov na zaklad | X6: sladarije, petje
A7: Česa si v primerjavi z lanskim letom želiš manj? | F7: govorjenja - pridiganja | G7: pravil | H7: grdih dni | R7: jutranja telovadba | S7: jutranja telovadba | T7: jutranja telovadba | V7: jutranje telovadbe | W7: jutranje telovadbe | X7: jutranja telovadba | Y7: jutranja telovadba
A8: druge teme | D8: kemija - življenje v avtodomu | E8: kemija - življenje v avtodomu | G8: nogomet, šport na splošno | U8: jutranje tekmovanje (pojm je prepisovala in hotla napisat manj telovadbe :) | X8: o risanju | Y8: samorogi
A9: več srečanj čete | B9: =Q9 -> 1 | C9: =AI9 -> 0 | G9: 1 | Q9: =SUM(D9:P9) -> 1 | AI9: =SUM(R9:AH9) -> 0
A10: več vodovih sestankov | B10: =Q10 -> 3 | C10: =AI10 -> 1 | D10: 1 | E10: 1 | F10: 1 | Q10: =SUM(D10:P10) -> 3 | U10: 1 | AI10: =SUM(R10:AH10) -> 1
A11: obojega isto kot lani | B11: =Q11 -> 1 | C11: =AI11 -> 6 | H11: 1 | Q11: =SUM(D11:P11) -> 1 | R11: 1 | S11: 1 | T11: 1 | V11: 1 | X11: 1 | Y11: 1 | AI11: =SUM(R11:AH11) -> 6
A13: OCENI GLEDE NA LANSKO LETO:
A14: celotno skavtsko leto na splošno | B14: =Q14 -> 4.2 | C14: =AI14 -> 4 | D14: 4 | E14: 4 | F14: 4 | G14: 4 | H14: 5 | Q14: =AVERAGE(D14:P14) -> 4.2 | R14: 4 | S14: 4 | T14: 4 | U14: 4 | V14: 4 | W14: 4 | X14: 4 | Y14: 4 | AI14: =AVERAGE(R14:AH14) -> 4
A15: jesenovanje | B15: =Q15 -> 4.4 | C15: =AI15 -> 3.833333333 | D15: 5 | E15: 5 | F15: 4 | G15: 4 | H15: 4 | Q15: 4.4 | R15: 4 | S15: 4 | T15: 3 | U15: 4 | V15: ne | W15: ne | X15: 4 | Y15: 4 | AI15: =AVERAGE(R15:AH15) -> 3.833333333
A16: luč miru iz Betlehema | B16: 1 | C16: 3.166666667 | D16: ne | E16: 1 | F16: ne | G16: ne | H16: ne | Q16: 1 | R16: 3 | S16: 3 | T16: 3 | U16: 3 | V16: 3 | W16: ne | X16: 4 | Y16: ne | AI16: =AVERAGE(R16:AH16) -> 3.166666667
A17: razstava jaslic | B17: 2.5 | C17: 3.5 | D17: ne | E17: ne | F17: ne | G17: 2 | H17: 3 | Q17: 2.5 | R17: 4 | S17: 2 | T17: 3 | U17: 4 | V17: 3 | W17: 5 | X17: 4 | Y17: 3 | AI17: 3.5
A18: skupno zimovanje stega | B18: 3.2 | C18: 4.5 | D18: 3 | E18: 3 | F18: 3 | G18: 3 | H18: 4 | Q18: 3.2 | R18: 5 | S18: 4 | T18: 4 | U18: 5 | V18: 4 | W18: 5 | X18: 4 | Y18: 5 | AI18: 4.5
A19: vodov izlet (maja) | B19: 4.25 | C19: 4.857142857 | D19: 5 | E19: 5 | F19: 5 | G19: 2 | H19: ne | Q19: 4.25 | R19: 5 | S19: 5 | T19: 5 | U19: ne | V19: 5 | W19: 4 | X19: 5 | Y19: 5 | AI19: 4.857142857
A20: obljube | B20: 4.4 | C20: 4.428571429 | D20: 4 | E20: 4 | F20: 5 | G20: 4 | H20: 5 | Q20: 4.4 | R20: 5 | S20: 5 | T20: 4 | U20: ne | V20: 4 | W20: 4 | X20: 5 | Y20: 4 | AI20: 4.428571429
A21: poletni tabor | B21: 4.8 | C21: 4 | D21: 5 | E21: 5 | F21: 5 | G21: 4 | H21: 5 | Q21: 4.8 | R21: 5 | S21: 4 | T21: 4 | U21: 4 | V21: ne | W21: 3 | X21: 4 | Y21: 4 | AI21: 4
A22: srečanja čete | B22: 3.8 | C22: 4 | D22: 4 | E22: 4 | F22: 4 | G22: 2 | H22: 5 | Q22: 3.8 | R22: 3 | S22: 4 | T22: 4 | U22: 4 | V22: 4 | W22: 5 | X22: 4 | Y22: 4 | AI22: 4
A23: srečanja voda | B23: 5 | C23: 4.25 | D23: 5 | E23: 5 | F23: 5 | G23: 5 | H23: 5 | Q23: 5 | R23: 5 | S23: 4 | T23: 4 | U23: 4 | V23: 3 | W23: 4 | X23: 5 | Y23: 5 | AI23: 4.25
A24: sodelovanje na IV izzivu | B24: 2 | C24: 3.857142857 | D24: 2 | E24: 2 | F24: 1 | G24: 3 | H24: ne | Q24: 2 | R24: 5 | S24: 3 | T24: 3 | U24: ne | V24: 2 | W24: 4 | X24: 5 | Y24: 5 | AI24: 3.857142857
A25: razna srečanja na prostem | B25: 3.333333333 | C25: 4.125 | D25: ne | E25: 4 | F25: 1 | G25: ne | H25: 5 | Q25: 3.333333333 | R25: 4 | S25: 4 | T25: 4 | U25: 4 | V25: 4 | W25: 5 | X25: 4 | Y25: 4 | AI25: 4.125
A26: razne skupinske zabavne igre | B26: 3.1 | C26: 4.25 | D26: 3.5 | E26: 3 | F26: 3 | G26: 3 | H26: 3 | Q26: 3.1 | R26: 4 | S26: 4 | T26: 5 | U26: 3 | V26: 5 | W26: 5 | X26: 4 | Y26: 4 | AI26: 4.25
A27: razne športne igre | B27: 4.2 | C27: 3.75 | D27: 5 | E27: 4 | F27: 5 | G27: 4 | H27: 3 | Q27: 4.2 | R27: 2 | S27: 4 | T27: 4 | U27: 4 | V27: 5 | W27: 5 | X27: 3 | Y27: 3 | AI27: 3.75
A28: sodelovanja z drugimi skavti | B28: 4.75 | C28: 4.4 | D28: 5 | E28: 5 | F28: 5 | G28: ne | H28: 4 | Q28: 4.75 | R28: 5 | S28: ne | T28: ne | U28: 4 | V28: 3 | W28: ne | X28: 5 | Y28: 5 | AI28: 4.4
A29: zbiralne akcije papirja | B29: 3.6 | C29: 3.625 | D29: 3 | E29: 3 | F29: 5 | G29: 3 | H29: 4 | Q29: 3.6 | R29: 5 | S29: 3 | T29: 2 | U29: 3 | V29: 4 | W29: 4 | X29: 4 | Y29: 4 | AI29: 3.625
A30: petje na skavtskih srečanjih | B30: 2 | C30: 4 | D30: ne | E30: ne | F30: ne | G30: 2 | H30: 2 | Q30: 2 | R30: 4 | S30: 3 | T30: 3 | U30: 4 | V30: 3 | W30: 5 | X30: 5 | Y30: 5 | AI30: 4
A31: veščine | B31: 2 | C31: 4.2 | D31: 2 | E31: 2 | F31: 2 | G31: ne | H31: ne | Q31: 2 | R31: 5 | S31: 3 | T31: 4 | U31: ne | V31: ne | W31: ne | X31: 5 | Y31: 4 | AI31: 4.2
A32: duhovnost | B32: 2.5 | C32: 3.25 | D32: 3 | E32: 3 | F32: ne | G32: 1 | H32: 3 | Q32: 2.5 | R32: 3 | S32: 3 | T32: 3 | U32: 3 | V32: 2 | W32: 4 | X32: 4 | Y32: 4 | AI32: 3.25
A33: skavtske maše | B33: 2.6 | C33: 3.25 | D33: 3 | E33: 3 | F33: 2 | G33: 2 | H33: 3 | Q33: 2.6 | R33: 3 | S33: 3 | T33: 3 | U33: 2 | V33: 3 | W33: 4 | X33: 4 | Y33: 4 | AI33: 3.25
A34: jutranja telovadba na taborih | B34: 3 | C34: 1.75 | D34: ne | E34: 3 | F34: ne | G34: 3 | H34: 3 | Q34: 3 | R34: 1 | S34: 3 | T34: 3 | U34: 2 | V34: 1 | W34: 2 | X34: 1 | Y34: 1 | AI34: 1.75
A35: velika igra na taboru | B35: 5 | C35: 4.4 | D35: 5 | E35: 5 | F35: 5 | G35: 5 | H35: 5 | Q35: 5 | R35: 5 | S35: 4 | T35: 4 | U35: 4 | V35: ne | W35: ne | X35: ne | Y35: 5 | AI35: 4.4
A36: pot preživetja na taboru | B36: 4.5 | C36: 4.4 | D36: ne | E36: 4 | F36: 5 | G36: 4 | H36: 5 | Q36: 4.5 | R36: 4 | S36: 5 | T36: 5 | U36: 3 | V36: ne | W36: ne | X36: ne | Y36: 5 | AI36: 4.4
A37: razna skavtska znanja, ki smo se jih učili letos | B37: 3.5 | C37: 3.875 | D37: ne | E37: 2 | F37: 4 | G37: 3 | H37: 5 | Q37: 3.5 | R37: 4 | S37: 4 | T37: 4 | U37: 3 | V37: 3 | W37: 4 | X37: 5 | Y37: 4 | AI37: 3.875
A38: učenje prve pomoči | B38: 4.4 | C38: 3.875 | D38: 5 | E38: 5 | F38: 5 | G38: 2 | H38: 5 | Q38: 4.4 | R38: 4 | S38: 4 | T38: 3 | U38: 4 | V38: 3 | W38: 5 | X38: 4 | Y38: 4 | AI38: 3.875
A39: učenje branja karte in orientacije | B39: 4 | C39: 3.5 | D39: 4 | E39: 4 | F39: 4 | G39: 3 | H39: 5 | Q39: 4 | R39: 4 | S39: 4 | T39: 3 | U39: 3 | V39: 2 | W39: 5 | X39: 3 | Y39: 4 | AI39: 3.5
A40: učenje v obliki delavnic | B40: 3 | C40: 4.25 | D40: 3 | E40: 3 | F40: 2 | G40: 3 | H40: 4 | Q40: 3 | R40: 5 | S40: 3 | T40: 4 | U40: 5 | V40: 3 | W40: 5 | X40: 4 | Y40: 5 | AI40: 4.25
A41: delavnice z učenjem ročnih spretnosti | B41: 3.75 | C41: 4 | D41: 3 | E41: 3 | F41: 5 | G41: ne | H41: 4 | Q41: 3.75 | R41: 4 | S41: 3 | T41: 4 | U41: 5 | V41: 3 | W41: 5 | X41: 3 | Y41: 5 | AI41: 4
A42: zlata knjiga voda | B42: 3 | C42: 4 | D42: 3 | E42: 3 | F42: ne | G42: ne | H42: ne | Q42: 3 | R42: 4 | S42: ne | T42: ne | U42: ne | V42: ne | W42: 4 | X42: ne | Y42: ne | AI42: 4
A43: praznovanje rojstnih dni na skavtih | B43: =Q43 -> 4.333333333 | C43: =AI43 -> 5 | D43: 5 | E43: 5 | F43: ne | G43: ne | H43: 3 | Q43: =AVERAGE(D43:P43) -> 4.333333333 | R43: 5 | S43: ne | T43: ne | U43: ne | V43: 5 | W43: ne | X43: ne | Y43: ne | AI43: =AVERAGE(R43:AH43) -> 5
A44: kako so ti všeč naši skavtski prostori | B44: 4 | C44: 4.375 | D44: 4 | E44: 4 | F44: 4 | G44: 4 | H44: 4 | Q44: 4 | R44: 5 | S44: 4 | T44: 4 | U44: 4 | V44: 4 | W44: 5 | X44: 4 | Y44: 5 | AI44: 4.375
A46: OZNAČI, KOLIKO VEŠ O TEM:
A47: Baden-Powell | B47: =Q47 -> 3 | C47: =AI47 -> 2.75 | D47: 4 | E47: 4 | F47: 2 | G47: 3 | H47: 2 | Q47: =AVERAGE(D47:P47) -> 3 | R47: 3 | S47: 2 | T47: 2 | U47: 3 | V47: 3 | W47: 2 | X47: 3 | Y47: 4 | AI47: =AVERAGE(R47:AH47) -> 2.75
A48: Orientacija | B48: 4.2 | C48: 3.375 | D48: 4 | E48: 4 | F48: 5 | G48: 5 | H48: 3 | Q48: 4.2 | R48: 3 | S48: 3 | T48: 3 | U48: 4 | V48: 3 | W48: 4 | X48: 3 | Y48: 4 | AI48: 3.375
A49: Vozli | B49: 2.8 | C49: 3 | D49: 3 | E49: 3 | F49: 4 | G49: 2 | H49: 2 | Q49: 2.8 | R49: 3 | S49: 2 | T49: 3 | U49: 5 | V49: 3 | W49: 3 | X49: 2 | Y49: 3 | AI49: 3
A50: Vezave | B50: 3.6 | C50: 3.25 | D50: 4 | E50: 4 | F50: 4 | G50: 4 | H50: 2 | Q50: 3.6 | R50: 3 | S50: 3 | T50: 4 | U50: 4 | V50: 3 | W50: 3 | X50: 2 | Y50: 4 | AI50: 3.25
A51: Postavljanje tabornih zgradb | B51: 4.8 | C51: 3.125 | D51: 5 | E51: 5 | F51: 5 | G51: 5 | H51: 4 | Q51: 4.8 | R51: 4 | S51: 3 | T51: 2 | U51: 4 | V51: 2 | W51: 3 | X51: 2 | Y51: 5 | AI51: 3.125
A52: Postavljanje šotora | B52: 4.6 | C52: 3 | D52: 5 | E52: 5 | F52: 4 | G52: 5 | H52: 4 | Q52: 4.6 | R52: 4 | S52: 3 | T52: 3 | U52: 4 | V52: 2 | W52: 1 | X52: 3 | Y52: 4 | AI52: 3
A53: Postavljanje bivaka | B53: 4.6 | C53: 2.75 | D53: 5 | E53: 5 | F53: 4 | G53: 5 | H53: 4 | Q53: 4.6 | R53: 4 | S53: 2 | T53: 3 | U53: 3 | V53: 3 | W53: 1 | X53: 3 | Y53: 3 | AI53: 2.75
A54: Postavljanje in kurjenje ognjev | B54: 4.3 | C54: 3.5 | D54: 4.5 | E54: 5 | F54: 3 | G54: 5 | H54: 4 | Q54: 4.3 | R54: 5 | S54: 3 | T54: 3 | U54: 5 | V54: 2 | W54: 3 | X54: 3 | Y54: 4 | AI54: 3.5
A55: Kuhanje | B55: 4 | C55: 4 | D55: 4 | E55: 4 | F55: 4 | G55: 4 | H55: 4 | Q55: 4 | R55: 5 | S55: 4 | T55: 3 | U55: 5 | V55: 4 | W55: 3 | X55: 3 | Y55: 5 | AI55: 4
A56: Morsejeva abeceda | B56: 1 | C56: 1.375 | D56: 1 | E56: 1 | F56: 1 | G56: 1 | H56: 1 | Q56: 1 | R56: 3 | S56: 2 | T56: 1 | U56: 1 | V56: 1 | W56: 1 | X56: 1 | Y56: 1 | AI56: 1.375
A57: Vremenski znaki | B57: 2 | C57: 2.5 | D57: 2 | E57: 1 | F57: 1 | G57: 1 | H57: 5 | Q57: 2 | R57: 2 | S57: 3 | T57: 2 | U57: 2 | V57: 3 | W57: 2 | X57: 3 | Y57: 3 | AI57: 2.5
A58: Prva pomoč | B58: 4.6 | C58: 3.5 | D58: 5 | E58: 5 | F58: 4 | G58: 5 | H58: 4 | Q58: 4.6 | R58: 4 | S58: 3 | T58: 3 | U58: 5 | V58: 2 | W58: 4 | X58: 3 | Y58: 4 | AI58: 3.5
A59: Poznavanje gozdnih živali in stopinj | B59: 2 | C59: 2.875 | D59: 3 | E59: 1 | F59: 1 | G59: 3 | H59: 2 | Q59: 2 | R59: 4 | S59: 3 | T59: 3 | U59: 3 | V59: 4 | W59: 2 | X59: 2 | Y59: 2 | AI59: 2.875
A60: Užitne rastline in gobe | B60: 1.2 | C60: 1.625 | D60: 1 | E60: 1 | F60: 1 | G60: 1 | H60: 2 | Q60: 1.2 | R60: 2 | S60: 2 | T60: 2 | U60: 2 | V60: 1 | W60: 1 | X60: 1 | Y60: 2 | AI60: 1.625
A61: Ocenjevanje in merjenje razdalj | B61: 1.6 | C61: 2.125 | D61: 1 | E61: 1 | F61: 1 | G61: 2 | H61: 3 | Q61: 1.6 | R61: 4 | S61: 2 | T61: 2 | U61: 2 | V61: 1 | W61: 1 | X61: 2 | Y61: 3 | AI61: 2.125
A62: Varno in hitro sekanje in žaganje | B62: 4.2 | C62: 2.625 | D62: 4 | E62: 4 | F62: 4 | G62: 5 | H62: 4 | Q62: 4.2 | R62: 3 | S62: 3 | T62: 2 | U62: 4 | V62: 1 | W62: 1 | X62: 2 | Y62: 5 | AI62: 2.625
A64: naša četa je 1 premajhna, 5 prevelika | B64: =Q64 -> 2.4 | C64: =AI64 -> 2 | D64: 3 | E64: 2 | F64: 2 | G64: 2 | H64: 3 | Q64: =AVERAGE(D64:P64) -> 2.4 | R64: 2 | S64: 2 | T64: 2 | U64: 2 | W64: 2 | X64: 2 | Y64: 2 | AI64: =AVERAGE(R64:AH64) -> 2
S66: letos mi je bilo v četi zelo všeč

Sheet primerjava 2004-2008 -stolpična
B1: fantje 04 | C1: punce 04 | D1: fantje 05 | E1: punce 05 | F1: fantje 06 | G1: punce 06 | H1: fantje 07 | I1: punce 07 | J1: fantje 08 | K1: punce 08 | L1: razlika fantje 04-05 | M1: razlika punce 04-05 | N1: razlika fantje 05-06 | O1: razlika punce 05-06 | P1: razlika fantje 06-07 | Q1: razlika punce 06-07 | S1: razlika fantje 07-08 | T1: razlika punce 07-08 | V1: napredek + mnenja fantje: | W1: napredek + mnenja punce: | X1: leto 2007
A2: srečanje čete | B2: 4.333333333 | C2: 3.6 | D2: 4.166666667 | E2: 4.444444444 | F2: 3.75 | G2: 4 | H2: 4.142857143 | I2: 4.266666667 | J2: 3.961538462 | K2: 4.230769231 | L2: =D2-B2 -> -0.1666666667 | M2: 0.8444444444 | N2: -0.4166666667 | O2: -0.4444444444 | P2: 0.3928571429 | Q2: 0.2666666667 | R2: srečanje čete | S2: =J2-H2 -> -0.1813186813 | T2: =K2-I2 -> -0.0358974359 | V2: šport in športne igre +0,63 | W2: orientacija +0,54 | X2: napredek + mnenja fantje: | Y2: napredek + mnenja punce:
A3: srečanja voda | B3: 3.727272727 | C3: 4.1 | D3: 4 | E3: 4.222222222 | F3: 4 | G3: 4.142857143 | H3: 4.571428571 | I3: 4 | J3: 4.230769231 | K3: 4.153846154 | L3: =D3-B3 -> 0.2727272727 | M3: =E3-C3 -> 0.1222222222 | N3: =F3-D3 -> 0 | O3: =G3-E3 -> -0.07936507937 | P3: =H3-F3 -> 0.5714285714 | Q3: =I3-G3 -> -0.1428571429 | R3: srečanja voda | S3: -0.3406593407 | T3: 0.1538461538 | X3: skavtski izpit 2,43 | Y3: jutranja telovadba 1,29
A4: jesenovanje | H4: 5 | I4: 4.583333333 | J4: 4.416666667 | K4: 4.538461538 | P4: =H4-F4 -> 5 | Q4: =I4-G4 -> 4.583333333 | R4: jesenovanje | S4: -0.5833333333 | T4: -0.04487179487 | X4: zlata knjiga voda 1,86 | Y4: zlata knjiga voda 1,16
A5: zimovanje | D5: 4.833333333 | E5: 4.555555556 | F5: 4.625 | G5: 4.666666667 | H5: 4.571428571 | I5: 4.8 | J5: 4.541666667 | K5: 4.769230769 | N5: =F5-D5 -> -0.2083333333 | O5: =G5-E5 -> 0.1111111111 | P5: -0.05357142857 | Q5: 0.1333333333 | R5: zimovanje | S5: -0.02976190476 | T5: -0.03076923077 | X5: jutranja telovadba 0,89 | Y5: skavtsko tehnično znanje 0,64
A6: obljube | B6: 4.166666667 | C6: 4.2 | D6: 3.833333333 | E6: 4.777777778 | F6: 4 | G6: 4.714285714 | H6: 4.714285714 | I6: 4.846153846 | J6: 4.333333333 | K6: 4.666666667 | L6: =D6-B6 -> -0.3333333333 | M6: =E6-C6 -> 0.5777777778 | N6: 0.1666666667 | O6: -0.06349206349 | P6: 0.7142857143 | Q6: 0.1318681319 | R6: obljube | S6: -0.380952381 | T6: -0.1794871795 | X6: skavtkse maše 0,88 | Y6: praznovanje rojstnih dni 0,63
A7: poletni tabor | D7: 4.833333333 | E7: 5 | F7: 4.428571429 | G7: 4.714285714 | H7: 5 | I7: 4.692307692 | J7: 4.653846154 | K7: 5 | N7: -0.4047619048 | O7: -0.2857142857 | P7: 0.5714285714 | Q7: -0.02197802198 | R7: poletni tabor | S7: -0.3461538462 | T7: 0.3076923077 | X7: orientacija 0,79 | Y7: pustni ples 0,54
A8: vodov potep (med letom) | B8: 4.363636364 | C8: 3.7 | D8: 4.666666667 | E8: 4.111111111 | F8: 4.25 | G8: 4.571428571 | H8: 4.857142857 | I8: 4.916666667 | J8: 4.545454545 | K8: 3.5 | L8: =D8-B8 -> 0.303030303 | M8: =E8-C8 -> 0.4111111111 | N8: -0.4166666667 | O8: 0.4603174603 | P8: 0.6071428571 | Q8: 0.3452380952 | R8: vodov potep (med letom) | S8: -0.3116883117 | T8: -1.416666667 | X8: obljube 0,71
A9: aktivnosti na prostem | B9: 4.166666667 | C9: 3.8 | D9: 4.666666667 | E9: 4 | F9: 4.5 | G9: 4.285714286 | H9: 4.714285714 | I9: 4.333333333 | J9: 4.346153846 | K9: 4 | L9: =D9-B9 -> 0.5 | M9: 0.2 | N9: -0.1666666667 | O9: 0.2857142857 | P9: 0.2142857143 | Q9: 0.04761904762 | R9: aktivnosti na prostem | S9: -0.3681318681 | T9: -0.3333333333 | X9: vodovi potepi 0,61
A10: skavtski izpit | B10: 2.181818182 | C10: 2.1 | D10: 2.333333333 | E10: 2.555555556 | F10: 2 | G10: 2.714285714 | H10: 4.428571429 | I10: 3.5 | J10: 3.5 | K10: 3.461538462 | L10: 0.1515151515 | M10: =E10-C10 -> 0.4555555556 | N10: -0.3333333333 | O10: 0.1587301587 | P10: 2.428571429 | Q10: 0.7857142857 | R10: skavtski izpit | S10: -0.9285714286 | T10: -0.03846153846 | X10: praznovanje rojstnih dni 1,23 | Y10: skavtski izpit 0,79
A11: luč miru iz Betlehema | B11: 3.916666667 | C11: 4.4 | D11: 3.5 | E11: 3.777777778 | F11: 4 | G11: 4.571428571 | H11: 4.5 | I11: 4.5 | J11: 4.125 | K11: 3.583333333 | L11: -0.4166666667 | M11: -0.6222222222 | N11: 0.5 | O11: 0.7936507937 | P11: 0.5 | Q11: -0.07142857143 | R11: luč miru iz Betlehema | S11: -0.375 | T11: -0.9166666667 | X11: LMB 0,5
A12: žive jaslice | B12: 3.916666667 | C12: 3.8 | D12: 3 | E12: 3.444444444 | F12: 3.375 | G12: 4.285714286 | H12: 3.75 | I12: 4.5 | J12: 3.666666667 | K12: 3.9 | L12: -0.9166666667 | M12: -0.3555555556 | N12: 0.375 | O12: 0.8412698413 | P12: 0.375 | Q12: 0.2142857143 | R12: žive jaslice | S12: -0.08333333333 | T12: -0.6
A13: veščine | B13: 4.833333333 | C13: 3.7 | D13: 3.833333333 | E13: 4 | F13: 4.25 | G13: 4.666666667 | H13: 3.25 | I13: 4.230769231 | J13: 3.384615385 | K13: 3.538461538 | L13: -1 | M13: 0.3 | N13: 0.4166666667 | O13: 0.6666666667 | P13: -1 | Q13: -0.4358974359 | R13: veščine | S13: 0.1346153846 | T13: -0.6923076923
A14: duhovnost | B14: 3.5 | C14: 3.777777778 | D14: 2.666666667 | E14: 2.777777778 | F14: 2.875 | G14: 3.285714286 | H14: 3.285714286 | I14: 3.692307692 | J14: 3.423076923 | K14: 3.307692308 | L14: -0.8333333333 | M14: -1 | N14: 0.2083333333 | O14: 0.5079365079 | P14: 0.4107142857 | Q14: 0.4065934066 | R14: duhovnost | S14: 0.1373626374 | T14: -0.3846153846
A15: skavtske maše | B15: 3.083333333 | C15: 3.8 | D15: 2.333333333 | E15: 3.222222222 | F15: 3.125 | G15: 4 | H15: 4 | I15: 4 | J15: 3.961538462 | K15: 3.923076923 | L15: -0.75 | M15: -0.5777777778 | N15: 0.7916666667 | O15: 0.7777777778 | P15: 0.875 | Q15: 0 | R15: skavtske maše | S15: -0.03846153846 | T15: -0.07692307692 | X15: vodovi sestanki 0,57
A16: jutranja telovadba | B16: 2.416666667 | C16: 2.2 | D16: 1.666666667 | E16: 2.111111111 | F16: 2.25 | G16: 2.285714286 | H16: 3.142857143 | I16: 3.571428571 | J16: 3.615384615 | K16: 2.653846154 | L16: -0.75 | M16: -0.08888888889 | N16: =F16-D16 -> 0.5833333333 | O16: =G16-E16 -> 0.1746031746 | P16: =H16-F16 -> 0.8928571429 | Q16: =I16-G16 -> 1.285714286 | R16: jutranja telovadba | S16: =J16-H16 -> 0.4725274725 | T16: =K16-I16 -> -0.9175824176 | X16: poletni tabor 0,57
A17: akcija | B17: 4.909090909 | C17: 4.3 | D17: 4.166666667 | E17: 3.125 | F17: 4.5 | G17: 4.571428571 | H17: 4.714285714 | I17: 4.538461538 | J17: 4.615384615 | K17: 4.083333333 | L17: =D17-B17 -> -0.7424242424 | M17: -1.175 | N17: =F17-D17 -> 0.3333333333 | O17: 1.446428571 | P17: =H17-F17 -> 0.2142857143 | Q17: -0.03296703297 | R17: akcija | S17: -0.0989010989 | T17: -0.4551282051 | X17: ročne spretnosti 0,63
A18: orientacija | B18: 4.25 | C18: 3.3 | D18: 3.666666667 | E18: 3.375 | F18: 3.5 | G18: 3.571428571 | H18: 4.285714286 | I18: 3.384615385 | J18: 3.538461538 | K18: 3.923076923 | L18: -0.5833333333 | M18: 0.075 | N18: -0.1666666667 | O18: 0.1964285714 | P18: 0.7857142857 | Q18: -0.1868131868 | R18: orientacija | S18: -0.7472527473 | T18: 0.5384615385
A19: pot preživetja | B19: 4.833333333 | C19: 4.222222222 | D19: 5 | E19: 4.5 | F19: 4.75 | G19: 4.5 | H19: 5 | I19: 4.833333333 | J19: 4 | K19: 4.75 | L19: 0.1666666667 | M19: 0.2777777778 | N19: -0.25 | O19: 0 | P19: 0.25 | Q19: 0.3333333333 | R19: pot preživetja | S19: -1 | T19: -0.08333333333
A20: sodelovanje z drugimi skavti | B20: 4.416666667 | C20: 3.7 | D20: 4.666666667 | E20: 4.111111111 | F20: 4.625 | G20: 4.285714286 | H20: 4.714285714 | I20: 4.428571429 | J20: 4.166666667 | K20: 4.166666667 | L20: 0.25 | M20: 0.4111111111 | N20: -0.04166666667 | O20: 0.1746031746 | P20: 0.08928571429 | Q20: 0.1428571429 | R20: sodelovanje z drugimi skavti | S20: -0.5476190476 | T20: -0.2619047619
A21: razne skupinske zabavne igre | B21: 4.166666667 | C21: 4.1 | D21: 4 | E21: 4.625 | F21: 4.125 | G21: 4 | H21: 4 | I21: 4.285714286 | J21: 4.115384615 | K21: 4.461538462 | L21: -0.1666666667 | M21: 0.525 | N21: 0.125 | O21: -0.625 | P21: -0.125 | Q21: 0.2857142857 | R21: razne skupinske zabavne igre | S21: 0.1153846154 | T21: 0.1758241758 | V21: nazadovanje mnenja fantje | W21: nazadovanje mnenja punce | X21: nazadovanje mnenja fantje | Y21: nazadovanje mnenja punce
A22: velika igra (celodnevna, kot na taboru) | B22: 4.416666667 | C22: 4.3 | D22: 4.5 | E22: 3.375 | F22: 4.375 | G22: 4.571428571 | H22: 4.428571429 | I22: 4.071428571 | J22: 4 | K22: 4.545454545 | L22: 0.08333333333 | M22: -0.925 | N22: -0.125 | O22: 1.196428571 | P22: 0.05357142857 | Q22: -0.5 | R22: velika igra (celodnevna, kot na taboru) | S22: -0.4285714286 | T22: 0.474025974 | V22: jesenovanje -0,58 | W22: vodov potep -1,42 | X22: veščine -1,00!! | Y22: velika igra -0,5
A23: skavtska znanja (vozli, zgradbe, orient.. | B23: 3.583333333 | C23: 3.444444444 | D23: 3.5 | E23: 3.111111111 | F23: 3.875 | G23: 3 | H23: 4.285714286 | I23: 3.642857143 | J23: 3.923076923 | K23: 3.5 | L23: -0.08333333333 | M23: -0.3333333333 | N23: 0.375 | O23: -0.1111111111 | P23: 0.4107142857 | Q23: 0.6428571429 | R23: skavtska znanja (vozli, zgradbe, orient.. | S23: -0.3626373626 | T23: -0.1428571429 | V23: skavtski izpit -0,93 | W23: lmb -0,92 | Y23: potopisna predavanja -1,74
A24: različne delavnice | B24: 3.416666667 | C24: 3.9 | D24: 3.666666667 | E24: 3.75 | F24: 3.75 | G24: 4 | H24: 3.714285714 | I24: 4.142857143 | J24: 3.615384615 | K24: 4.076923077 | L24: 0.25 | M24: -0.15 | N24: 0.08333333333 | O24: 0.25 | P24: -0.03571428571 | Q24: 0.1428571429 | R24: različne delavnice | S24: -0.0989010989 | T24: -0.06593406593 | V24: orientacija -0,75 | W24: žive jaslice -0,6
A25: delavnice z učenjem ročnih spretnosti | B25: 3.666666667 | C25: 3.9 | D25: 2.666666667 | E25: 3.444444444 | F25: 3.375 | G25: 4.142857143 | H25: 4 | I25: 4.142857143 | J25: 3.730769231 | K25: 4.076923077 | L25: -1 | M25: -0.4555555556 | N25: 0.7083333333 | O25: 0.6984126984 | P25: 0.625 | Q25: 0 | R25: delavnice z učenjem ročnih spretnosti | S25: -0.2692307692 | T25: -0.06593406593 | V25: pot preživetja -1 | W25: veščine -0,69
A26: šport in športne igre | B26: 4.833333333 | C26: 4 | D26: 4 | E26: 3.555555556 | F26: 4.25 | G26: 3.714285714 | H26: 4.142857143 | I26: 4.071428571 | J26: 4.769230769 | K26: 3.461538462 | L26: -0.8333333333 | M26: -0.4444444444 | N26: 0.25 | O26: 0.1587301587 | P26: -0.1071428571 | Q26: 0.3571428571 | R26: šport in športne igre | S26: 0.6263736264 | T26: -0.6098901099 | V26: sodelovanje z drugimi skavti - 0,55 | W26: jutranja telovadba -0,92
A27: petje | B27: 2.583333333 | C27: 3 | D27: 2.833333333 | E27: 3.888888889 | F27: 2.875 | G27: 4.142857143 | H27: 2.714285714 | I27: 4.384615385 | J27: 3 | K27: 3.923076923 | L27: =D27-B27 -> 0.25 | M27: 0.8888888889 | N27: 0.04166666667 | O27: 0.253968254 | P27: -0.1607142857 | Q27: 0.2417582418 | R27: petje | S27: =J27-H27 -> 0.2857142857 | T27: -0.4615384615 | V27: praznovanje rojstni dnih -0,54
A28: zlata knjiga voda | B28: 2.666666667 | C28: 4 | D28: 2.333333333 | E28: 2.666666667 | F28: 2 | G28: 3.142857143 | H28: 3.857142857 | I28: 4.307692308 | J28: 3.461538462 | K28: 3.923076923 | L28: -0.3333333333 | M28: -1.333333333 | N28: -0.3333333333 | O28: 0.4761904762 | P28: 1.857142857 | Q28: 1.164835165 | R28: zlata knjiga voda | S28: -0.3956043956 | T28: -0.3846153846 | W28: šport in športne igre -0,61
A29: praznovanje rojstnih dni na skavtih | B29: 4.833333333 | C29: 4.4 | D29: 4.833333333 | E29: 4.555555556 | F29: 4.375 | G29: 4.714285714 | H29: 4.5 | I29: 4.6 | J29: 3.961538462 | K29: 4.153846154 | L29: 0 | M29: 0.1555555556 | N29: -0.4583333333 | O29: 0.1587301587 | P29: 0.125 | Q29: -0.1142857143 | R29: praznovanje rojstnih dni na skavtih | S29: -0.5384615385 | T29: -0.4461538462
A30: všečnost skavtske sobe | B30: 4 | C30: 4.333333333 | D30: 4.2 | E30: 4.625 | F30: 3.625 | G30: 4.142857143 | H30: 4.857142857 | I30: 4.769230769 | J30: 4.5 | K30: 4.461538462 | L30: =D30-B30 -> 0.2 | M30: 0.2916666667 | N30: -0.575 | O30: -0.4821428571 | P30: 1.232142857 | Q30: 0.6263736264 | R30: všečnost skavtske sobe | S30: -0.3571428571 | T30: -0.3076923077
A31: zbiralne akcije papirja za zastonj tabor | B31: 3.5 | C31: 4.5 | D31: 4.5 | E31: 4.777777778 | F31: 4.375 | G31: 4.857142857 | H31: 4.571428571 | I31: 4.714285714 | J31: 4.615384615 | K31: 4.692307692 | L31: 1 | M31: 0.2777777778 | N31: -0.125 | O31: 0.07936507937 | P31: 0.1964285714 | Q31: -0.1428571429 | R31: zbiralne akcije papirja za zastonj tabor | S31: 0.04395604396 | T31: -0.02197802198
A34: ALI BI TO ŽELEL LETOS: | R34: ALI BI TO ŽELEL LETOS: | V34: želje fanjtje | W34: želje punce
A35: gostje na obisku | B35: 4.5 | C35: 3.3 | D35: 4.333333333 | E35: 3.5 | F35: 3.75 | G35: 4 | H35: 4.166666667 | I35: 4.076923077 | J35: 4.5 | K35: 4.615384615 | L35: =D35-B35 -> -0.1666666667 | M35: 0.2 | N35: -0.5833333333 | O35: 0.5 | P35: 0.4166666667 | Q35: 0.07692307692 | R35: gostje na obisku | S35: =J35-H35 -> 0.3333333333 | T35: 0.5384615385 | V35: prednovoletna, pustna zabava +1,85 | W35: zanimivi gostje na obisku +0,54
A36: potopisna predavanja | B36: 3 | C36: 3 | D36: 2.166666667 | E36: 3.333333333 | F36: 3.375 | G36: 4.571428571 | H36: 3.857142857 | I36: 2.833333333 | J36: 3.769230769 | K36: 3.916666667 | L36: -0.8333333333 | M36: 0.3333333333 | N36: 1.208333333 | O36: 1.238095238 | P36: 0.4821428571 | Q36: -1.738095238 | R36: potopisna predavanja | S36: -0.08791208791 | T36: 1.083333333 | V36: miklavževanje 4,69 | W36: potopisna predavanja +1,08
A37: kino, gledališče | B37: 4.833333333 | C37: 4.4 | D37: 4.833333333 | E37: 4.555555556 | F37: 4.375 | G37: 4.714285714 | H37: 4.5 | I37: 4.6 | J37: 4.923076923 | K37: 4.846153846 | L37: 0 | M37: 0.1555555556 | N37: -0.4583333333 | O37: 0.1587301587 | P37: 0.125 | Q37: -0.1142857143 | R37: kino, gledališče | S37: 0.4230769231 | T37: 0.2461538462 | V37: turnir v naseljencih 4,77 | W37: miklavževanje 4,85
A38: prednovoletna, pustna zabava | B38: 2.583333333 | C38: 3.9 | D38: 2.833333333 | E38: 3 | F38: 3 | G38: 3.857142857 | H38: 3 | I38: 4.4 | J38: 4.846153846 | K38: 4.846153846 | L38: 0.25 | M38: -0.9 | N38: 0.1666666667 | O38: 0.8571428571 | P38: 0 | Q38: 0.5428571429 | R38: prednovoletna, pustna zabava | S38: 1.846153846 | T38: 0.4461538462 | W38: turnir v naseljencih 4,31
A39: miklavževanje | J39: 4.692307692 | K39: 4.846153846 | R39: miklavževanje | S39: 4.692307692 | T39: 4.846153846
A40: turnir v naseljencih | J40: 4.769230769 | K40: 4.307692308 | R40: turnir v naseljencih | S40: 4.769230769 | T40: 4.307692308
A42: OZNAČI, KOLIKO VEŠ O TEM: | R42: OZNAČI, KOLIKO VEŠ O TEM: | V42: napredek znanja fantje | W42: napredek znanja punce
A43: baden powell | D43: 2.666666667 | E43: 2.444444444 | F43: 3.142857143 | G43: 2.571428571 | H43: 3.714285714 | I43: 3.2 | J43: 3.615384615 | K43: 3.230769231 | N43: =F43-D43 -> 0.4761904762 | O43: =G43-E43 -> 0.126984127 | P43: =H43-F43 -> 0.5714285714 | Q43: =I43-G43 -> 0.6285714286 | R43: baden powell | S43: =J43-H43 -> -0.0989010989 | T43: =K43-I43 -> 0.03076923077 | V43: živali +0,94 | W43: vozli +0,59 | X43: napredek znanja fantje | Y43: napredek znanja punce
A44: orientacija | D44: 3.666666667 | E44: 2.666666667 | F44: 3.1875 | G44: 2.785714286 | H44: 3.285714286 | I44: 3.666666667 | J44: 3.538461538 | K44: 3 | N44: -0.4791666667 | O44: 0.119047619 | P44: 0.09821428571 | Q44: 0.880952381 | R44: orientacija | S44: 0.2527472527 | T44: -0.6666666667 | W44: živali +1,05 | X44: ogenj 1,38 | Y44: orientacija 0,88
A45: vozli | D45: 2.833333333 | E45: 2.888888889 | F45: 3.75 | G45: 3.714285714 | H45: 4.142857143 | I45: 3.333333333 | J45: 3.884615385 | K45: 3.923076923 | N45: 0.9166666667 | O45: 0.8253968254 | P45: 0.3928571429 | Q45: -0.380952381 | R45: vozli | S45: -0.2582417582 | T45: 0.5897435897 | W45: gobe in rastline +1,28 | X45: bivak 1,36 | Y45: bivak 0,66
A46: vezave | D46: 2.5 | E46: 3 | F46: 3.9875 | G46: 3.285714286 | H46: 4.571428571 | I46: 3.714285714 | J46: 4.038461538 | K46: 3.230769231 | N46: 1.4875 | O46: 0.2857142857 | P46: 0.5839285714 | Q46: 0.4285714286 | R46: vezave | S46: -0.532967033 | T46: -0.4835164835 | X46: vezave 0,58 | Y46: baden powell 0,63
A47: taborne zgradbe | D47: 4.166666667 | E47: 2.333333333 | F47: 3.625 | G47: 3.214285714 | H47: 3.714285714 | I47: 3.266666667 | J47: 4.038461538 | K47: 3 | N47: -0.5416666667 | O47: 0.880952381 | P47: 0.08928571429 | Q47: 0.05238095238 | R47: taborne zgradbe | S47: 0.3241758242 | T47: -0.2666666667 | X47: šotor 0,58
A48: šotor | D48: 4.333333333 | E48: 3 | F48: 3.5625 | G48: 3.857142857 | H48: 4.142857143 | I48: 4.066666667 | J48: 4.192307692 | K48: 3.833333333 | N48: -0.7708333333 | O48: 0.8571428571 | P48: 0.5803571429 | Q48: 0.2095238095 | R48: šotor | S48: 0.04945054945 | T48: -0.2333333333 | X48: baden povel 0,57
A49: bivak | D49: 3 | E49: 1.888888889 | F49: 3.5 | G49: 3.142857143 | H49: 4.857142857 | I49: 3.8 | J49: 4.153846154 | K49: 3.230769231 | N49: 0.5 | O49: 1.253968254 | P49: 1.357142857 | Q49: 0.6571428571 | R49: bivak | S49: -0.7032967033 | T49: -0.5692307692 | X49: sekanje, žaganje 0,51
A50: ogenj | D50: 4 | E50: 3.25 | F50: 3.625 | G50: 3.642857143 | H50: 5 | I50: 3.5 | J50: 4.423076923 | K50: 3.923076923 | N50: -0.375 | O50: 0.3928571429 | P50: 1.375 | Q50: -0.1428571429 | R50: ogenj | S50: -0.5769230769 | T50: 0.4230769231 | X50: kuhanje 0,5
A51: kuhanje | D51: 2.8 | E51: 3.888888889 | F51: 3.5 | G51: 4.214285714 | H51: 4 | I51: 4.533333333 | J51: 3.923076923 | K51: 4.166666667 | N51: 0.7 | O51: 0.3253968254 | P51: 0.5 | Q51: 0.319047619 | R51: kuhanje | S51: -0.07692307692 | T51: -0.3666666667
A52: morse | D52: 2 | E52: 2.777777778 | F52: 2.625 | G52: 3.428571429 | H52: 2.428571429 | I52: 1.928571429 | J52: 2.192307692 | K52: 1.833333333 | N52: 0.625 | O52: 0.6507936508 | P52: -0.1964285714 | Q52: -1.5 | R52: morse | S52: -0.2362637363 | T52: -0.09523809524
A53: vreme | D53: 2.833333333 | E53: 2.888888889 | F53: 3.25 | G53: 3.285714286 | H53: 3.142857143 | I53: 3.666666667 | J53: 3.5 | K53: 3.916666667 | N53: 0.4166666667 | O53: 0.3968253968 | P53: -0.1071428571 | Q53: 0.380952381 | R53: vreme | S53: 0.3571428571 | T53: 0.25
A54: prva pomoč | D54: 3 | E54: 3.222222222 | F54: 3.428571429 | G54: 3.928571429 | H54: 3.571428571 | I54: 3.8 | J54: 3.769230769 | K54: 4.25 | N54: 0.4285714286 | O54: 0.7063492063 | P54: 0.1428571429 | Q54: -0.1285714286 | R54: prva pomoč | S54: 0.1978021978 | T54: 0.45 | V54: očitno nazadovanje znanja fantje: | W54: očitno nazadovanje znanja punce:
A55: živali | D55: 3.333333333 | E55: 2.444444444 | F55: 2.6875 | G55: 2.428571429 | H55: 2.142857143 | I55: 2.714285714 | J55: 3.083333333 | K55: 3.769230769 | N55: -0.6458333333 | O55: -0.01587301587 | P55: -0.5446428571 | Q55: 0.2857142857 | R55: živali | S55: 0.9404761905 | T55: 1.054945055 | V55: vezave -0,53 | W55: orientacija -0,67
A56: gobe in rastline | D56: 3.166666667 | E56: 2.666666667 | F56: 2.8625 | G56: 2.5 | H56: 3.214285714 | I56: 2.642857143 | J56: 3.461538462 | K56: 3.923076923 | N56: -0.3041666667 | O56: -0.1666666667 | P56: 0.3517857143 | Q56: 0.1428571429 | R56: gobe in rastline | S56: 0.2472527473 | T56: 1.28021978 | V56: bivak -0,7 | W56: bivak - 0,57
A57: merjenje razdalj | D57: 2.2 | E57: 2.666666667 | F57: 3 | G57: 2.571428571 | H57: 3.285714286 | I57: 2.857142857 | J57: 3.269230769 | K57: 2.583333333 | N57: 0.8 | O57: -0.09523809524 | P57: 0.2857142857 | Q57: 0.2857142857 | R57: merjenje razdalj | S57: -0.01648351648 | T57: -0.2738095238 | V57: kurjenje ognja -0,58 | X57: živali -0,54 | Y57: morsejeva abeceda -1,5!!!!
A58: sekanje in žaganje | D58: 3.5 | E58: 2.333333333 | F58: 4.0625 | G58: 3.071428571 | H58: 4.571428571 | I58: 3.25 | J58: 4.153846154 | K58: 3.230769231 | N58: 0.5625 | O58: 0.7380952381 | P58: 0.5089285714 | Q58: 0.1785714286 | R58: sekanje in žaganje | S58: -0.4175824176 | T58: -0.01923076923
A60: naša četa je 1- premajhna, 5 prevelika | H60: 1.375 | I60: 1.923076923 | J60: 2.5 | K60: 3.307692308 | P60: =H60-F60 -> 1.375 | Q60: =I60-G60 -> 1.923076923 | R60: naša četa je 1- premajhna, 5 prevelika | S60: =J60-H60 -> 1.125 | T60: =K60-I60 -> 1.384615385
A62: ODHODI/PRIHODI: | B62: 2003-04 | D62: 2004-05 | F62: 2005-06 | H62: 2006-07 | L62: 2007-08 | R62: ODHODI/PRIHODI:
A63: odhod v PP | B63: 5 | D63: 3 | F63: 1 | H63: 1 | L63: 2 | R63: odhod v PP
A64: odhod iz skavtov | B64: 9 | D64: 5 | F64: 5 | H64: 2 | L64: 0 | R64: odhod iz skavtov
A65: prihod novincev | B65: 6 | D65: 15 | F65: 4 | H65: 14 | L65: 13 | R65: prihod novincev
A66: vseh v četi | B66: 20 | D66: 28 | F66: 25 | H66: 34 | L66: 43 | R66: vseh v četi

Sheet primerjava 2004-2008-tabelarno
C1: 2004 | D1: 2005 | E1: 2006 | F1: 2007 | G1: 2008 | K1: 2004-05 | L1: 2005-06 | M1: 2006-07 | N1: 2007-08
A2: srečanje čete | B2: fantje | C2: 4.333333333 | D2: 4.166666667 | E2: 3.75 | F2: 4.142857143 | G2: 3.961538462 | I2: razlika | J2: fantje | K2: =D2-C2 -> -0.1666666667 | L2: -0.4166666667 | M2: 0.3928571429
B3: punce | C3: 3.6 | D3: 4.444444444 | E3: 4 | F3: 4.266666667 | G3: 4.230769231 | J3: punce | K3: 0.8444444444 | L3: -0.4444444444 | M3: 0.2666666667
A4: srečanja voda | B4: fantje | C4: 3.727272727 | D4: 4 | E4: 4 | F4: 4.571428571 | G4: 4.230769231 | I4: razlika | J4: fantje | K4: 0.2727272727 | L4: 0 | M4: 0.5714285714
B5: punce | C5: 4.1 | D5: 4.222222222 | E5: 4.142857143 | F5: 4 | G5: 4.153846154 | J5: punce | K5: 0.1222222222 | L5: -0.07936507937 | M5: -0.1428571429
A6: jesenovanje | B6: fantje | F6: 5 | G6: 4.416666667 | I6: razlika | J6: fantje
B7: punce | F7: 4.583333333 | G7: 4.538461538 | J7: punce
A8: zimovanje | B8: fantje | D8: 4.833333333 | E8: 4.625 | F8: 4.571428571 | G8: 4.541666667 | I8: razlika | J8: fantje | L8: =E8-D8 -> -0.2083333333 | M8: =F8-E8 -> -0.05357142857
B9: punce | D9: 4.555555556 | E9: 4.666666667 | F9: 4.8 | G9: 4.769230769 | J9: punce | L9: 0.1111111111 | M9: 0.1333333333
A10: obljube | B10: fantje | C10: 4.166666667 | D10: 3.833333333 | E10: 4 | F10: 4.714285714 | G10: 4.333333333 | I10: razlika | J10: fantje | K10: =D10-C10 -> -0.3333333333 | L10: 0.1666666667 | M10: 0.7142857143
B11: punce | C11: 4.2 | D11: 4.777777778 | E11: 4.714285714 | F11: 4.846153846 | G11: 4.666666667 | J11: punce | K11: =D11-C11 -> 0.5777777778 | L11: -0.06349206349 | M11: 0.1318681319
A12: poletni tabor | B12: fantje | D12: 4.833333333 | E12: 4.428571429 | F12: 5 | G12: 4.653846154 | I12: razlika | J12: fantje | L12: -0.4047619048 | M12: 0.5714285714
B13: punce | D13: 5 | E13: 4.714285714 | F13: 4.692307692 | G13: 5 | J13: punce | L13: -0.2857142857 | M13: -0.02197802198
A14: vodov potep (med letom) | B14: fantje | C14: 4.363636364 | D14: 4.666666667 | E14: 4.25 | F14: 4.857142857 | G14: 4.545454545 | I14: razlika | J14: fantje | K14: =D14-C14 -> 0.303030303 | L14: -0.4166666667 | M14: 0.6071428571
B15: punce | C15: 3.7 | D15: 4.111111111 | E15: 4.571428571 | F15: 4.916666667 | G15: 3.5 | J15: punce | K15: 0.4111111111 | L15: 0.4603174603 | M15: 0.3452380952
A16: aktivnosti na prostem | B16: fantje | C16: 4.166666667 | D16: 4.666666667 | E16: 4.5 | F16: 4.714285714 | G16: 4.346153846 | I16: razlika | J16: fantje | K16: 0.5 | L16: -0.1666666667 | M16: 0.2142857143
B17: punce | C17: 3.8 | D17: 4 | E17: 4.285714286 | F17: 4.333333333 | G17: 4 | J17: punce | K17: 0.2 | L17: 0.2857142857 | M17: 0.04761904762
A18: skavtski izpit | B18: fantje | C18: 2.181818182 | D18: 2.333333333 | E18: 2 | F18: 4.428571429 | G18: 3.5 | I18: razlika | J18: fantje | K18: 0.1515151515 | L18: -0.3333333333 | M18: 2.428571429
B19: punce | C19: 2.1 | D19: 2.555555556 | E19: 2.714285714 | F19: 3.5 | G19: 3.461538462 | J19: punce | K19: 0.4555555556 | L19: 0.1587301587 | M19: 0.7857142857
A20: luč miru iz Betlehema | B20: fantje | C20: 3.916666667 | D20: 3.5 | E20: 4 | F20: 4.5 | G20: 4.125 | I20: razlika | J20: fantje | K20: -0.4166666667 | L20: 0.5 | M20: 0.5
B21: punce | C21: 4.4 | D21: 3.777777778 | E21: 4.571428571 | F21: 4.5 | G21: 3.583333333 | J21: punce | K21: -0.6222222222 | L21: 0.7936507937 | M21: -0.07142857143
A22: žive jaslice | B22: fantje | C22: 3.916666667 | D22: 3 | E22: 3.375 | F22: 3.75 | G22: 3.666666667 | I22: razlika | J22: fantje | K22: -0.9166666667 | L22: 0.375 | M22: 0.375
B23: punce | C23: 3.8 | D23: 3.444444444 | E23: 4.285714286 | F23: 4.5 | G23: 3.9 | J23: punce | K23: -0.3555555556 | L23: 0.8412698413 | M23: 0.2142857143
A24: veščine | B24: fantje | C24: 4.833333333 | D24: 3.833333333 | E24: 4.25 | F24: 3.25 | G24: 3.384615385 | I24: razlika | J24: fantje | K24: -1 | L24: 0.4166666667 | M24: -1
B25: punce | C25: 3.7 | D25: 4 | E25: 4.666666667 | F25: 4.230769231 | G25: 3.538461538 | J25: punce | K25: 0.3 | L25: 0.6666666667 | M25: -0.4358974359
A26: duhovnost | B26: fantje | C26: 3.5 | D26: 2.666666667 | E26: 2.875 | F26: 3.285714286 | G26: 3.423076923 | I26: razlika | J26: fantje | K26: -0.8333333333 | L26: 0.2083333333 | M26: 0.4107142857
B27: punce | C27: 3.777777778 | D27: 2.777777778 | E27: 3.285714286 | F27: 3.692307692 | G27: 3.307692308 | J27: punce | K27: -1 | L27: 0.5079365079 | M27: 0.4065934066
A28: skavtske maše | B28: fantje | C28: 3.083333333 | D28: 2.333333333 | E28: 3.125 | F28: 4 | G28: 3.961538462 | I28: razlika | J28: fantje | K28: -0.75 | L28: 0.7916666667 | M28: 0.875
B29: punce | C29: 3.8 | D29: 3.222222222 | E29: 4 | F29: 4 | G29: 3.923076923 | J29: punce | K29: -0.5777777778 | L29: 0.7777777778 | M29: 0
A30: jutranja telovadba | B30: fantje | C30: 2.416666667 | D30: 1.666666667 | E30: 2.25 | F30: 3.142857143 | G30: 3.615384615 | I30: razlika | J30: fantje | K30: =D30-C30 -> -0.75 | L30: 0.5833333333 | M30: 0.8928571429
B31: punce | C31: 2.2 | D31: 2.111111111 | E31: 2.285714286 | F31: 3.571428571 | G31: 2.653846154 | J31: punce | K31: -0.08888888889 | L31: 0.1746031746 | M31: 1.285714286
A32: akcija | B32: fantje | C32: 4.909090909 | D32: 4.166666667 | E32: 4.5 | F32: 4.714285714 | G32: 4.615384615 | I32: razlika | J32: fantje | K32: -0.7424242424 | L32: 0.3333333333 | M32: 0.2142857143
B33: punce | C33: 4.3 | D33: 3.125 | E33: 4.571428571 | F33: 4.538461538 | G33: 4.083333333 | J33: punce | K33: -1.175 | L33: 1.446428571 | M33: -0.03296703297
A34: orientacija | B34: fantje | C34: 4.25 | D34: 3.666666667 | E34: 3.5 | F34: 4.285714286 | G34: 3.538461538 | I34: razlika | J34: fantje | K34: -0.5833333333 | L34: -0.1666666667 | M34: 0.7857142857
B35: punce | C35: 3.3 | D35: 3.375 | E35: 3.571428571 | F35: 3.384615385 | G35: 3.923076923 | J35: punce | K35: 0.075 | L35: 0.1964285714 | M35: -0.1868131868
A36: pot preživetja | B36: fantje | C36: 4.833333333 | D36: 5 | E36: 4.75 | F36: 5 | G36: 4 | I36: razlika | J36: fantje | K36: 0.1666666667 | L36: -0.25 | M36: 0.25
B37: punce | C37: 4.222222222 | D37: 4.5 | E37: 4.5 | F37: 4.833333333 | G37: 4.75 | J37: punce | K37: 0.2777777778 | L37: 0 | M37: 0.3333333333
A38: sodelovanje z drugimi skavti | B38: fantje | C38: 4.416666667 | D38: 4.666666667 | E38: 4.625 | F38: 4.714285714 | G38: 4.166666667 | I38: razlika | J38: fantje | K38: 0.25 | L38: -0.04166666667 | M38: 0.08928571429
B39: punce | C39: 3.7 | D39: 4.111111111 | E39: 4.285714286 | F39: 4.428571429 | G39: 4.166666667 | J39: punce | K39: 0.4111111111 | L39: 0.1746031746 | M39: 0.1428571429
A40: razne skupinske zabavne igre | B40: fantje | C40: 4.166666667 | D40: 4 | E40: 4.125 | F40: 4 | G40: 4.115384615 | I40: razlika | J40: fantje | K40: -0.1666666667 | L40: 0.125 | M40: -0.125
B41: punce | C41: 4.1 | D41: 4.625 | E41: 4 | F41: 4.285714286 | G41: 4.461538462 | J41: punce | K41: 0.525 | L41: -0.625 | M41: 0.2857142857
A42: velika igra (celodnevna, kot na taboru) | B42: fantje | C42: 4.416666667 | D42: 4.5 | E42: 4.375 | F42: 4.428571429 | G42: 4 | I42: razlika | J42: fantje | K42: 0.08333333333 | L42: =E42-D42 -> -0.125 | M42: =F42-E42 -> 0.05357142857
B43: punce | C43: 4.3 | D43: 3.375 | E43: 4.571428571 | F43: 4.071428571 | G43: 4.545454545 | J43: punce | K43: -0.925 | L43: 1.196428571 | M43: -0.5
A44: skavtska znanja (vozli, zgradbe, orient.. | B44: fantje | C44: 3.583333333 | D44: 3.5 | E44: 3.875 | F44: 4.285714286 | G44: 3.923076923 | I44: razlika | J44: fantje | K44: -0.08333333333 | L44: 0.375 | M44: 0.4107142857
B45: punce | C45: 3.444444444 | D45: 3.111111111 | E45: 3 | F45: 3.642857143 | G45: 3.5 | J45: punce | K45: -0.3333333333 | L45: -0.1111111111 | M45: 0.6428571429
A46: različne delavnice | B46: fantje | C46: 3.416666667 | D46: 3.666666667 | E46: 3.75 | F46: 3.714285714 | G46: 3.615384615 | I46: razlika | J46: fantje | K46: 0.25 | L46: 0.08333333333 | M46: -0.03571428571
B47: punce | C47: 3.9 | D47: 3.75 | E47: 4 | F47: 4.142857143 | G47: 4.076923077 | J47: punce | K47: -0.15 | L47: 0.25 | M47: 0.1428571429
A48: delavnice z učenjem ročnih spretnosti | B48: fantje | C48: 3.666666667 | D48: 2.666666667 | E48: 3.375 | F48: 4 | G48: 3.730769231 | I48: razlika | J48: fantje | K48: =D48-C48 -> -1 | L48: 0.7083333333 | M48: 0.625
B49: punce | C49: 3.9 | D49: 3.444444444 | E49: 4.142857143 | F49: 4.142857143 | G49: 4.076923077 | J49: punce | K49: -0.4555555556 | L49: 0.6984126984 | M49: 0
A50: šport in športne igre | B50: fantje | C50: 4.833333333 | D50: 4 | E50: 4.25 | F50: 4.142857143 | G50: 4.769230769 | I50: razlika | J50: fantje | K50: -0.8333333333 | L50: 0.25 | M50: -0.1071428571
B51: punce | C51: 4 | D51: 3.555555556 | E51: 3.714285714 | F51: 4.071428571 | G51: 3.461538462 | J51: punce | K51: -0.4444444444 | L51: 0.1587301587 | M51: 0.3571428571
A52: petje | B52: fantje | C52: 2.583333333 | D52: 2.833333333 | E52: 2.875 | F52: 2.714285714 | G52: 3 | I52: razlika | J52: fantje | K52: 0.25 | L52: 0.04166666667 | M52: -0.1607142857
B53: punce | C53: 3 | D53: 3.888888889 | E53: 4.142857143 | F53: 4.384615385 | G53: 3.923076923 | J53: punce | K53: 0.8888888889 | L53: 0.253968254 | M53: 0.2417582418
A54: zlata knjiga voda | B54: fantje | C54: 2.666666667 | D54: 2.333333333 | E54: 2 | F54: 3.857142857 | G54: 3.461538462 | I54: razlika | J54: fantje | K54: -0.3333333333 | L54: -0.3333333333 | M54: 1.857142857
B55: punce | C55: 4 | D55: 2.666666667 | E55: 3.142857143 | F55: 4.307692308 | G55: 3.923076923 | J55: punce | K55: -1.333333333 | L55: 0.4761904762 | M55: 1.164835165
A56: praznovanje rojstnih dni na skavtih | B56: fantje | C56: 4 | D56: 4.2 | E56: 3.625 | F56: 4.857142857 | G56: 3.961538462 | I56: razlika | J56: fantje | K56: 0.2 | L56: -0.575 | M56: 1.232142857
B57: punce | C57: 4.333333333 | D57: 4.625 | E57: 4.142857143 | F57: 4.769230769 | G57: 4.153846154 | J57: punce | K57: 0.2916666667 | L57: -0.4821428571 | M57: 0.6263736264
A58: všečnost skavtske sobe | B58: fantje | C58: 3.5 | D58: 4.5 | E58: 4.375 | F58: 4.571428571 | G58: 4.5 | I58: razlika | J58: fantje | K58: 1 | L58: -0.125 | M58: 0.1964285714
B59: punce | C59: 4.5 | D59: 4.777777778 | E59: 4.857142857 | F59: 4.714285714 | G59: 4.461538462 | J59: punce | K59: 0.2777777778 | L59: 0.07936507937 | M59: -0.1428571429
A60: zbiralne akcije papirja za zastonj tabor | B60: fantje | G60: 4.615384615 | I60: razlika | J60: fantje
B61: punce | G61: 4.692307692 | J61: punce
A63: KOLIKO BI SI TEGA ŽELEL LETOS:
C64: 2004 | D64: 2005 | E64: 2006 | F64: 2007 | G64: 2008 | J64: 2004-05 | K64: 2005-06 | L64: 2006-07 | M64: 2007-08
A65: različni zanimivi gostje na obisku | B65: fantje | C65: 4.5 | D65: 4.333333333 | E65: 3.75 | F65: 4.166666667 | G65: 4.5 | I65: razlika | J65: fantje | K65: =D65-C65 -> -0.1666666667 | L65: -0.5833333333 | M65: 0.4166666667
B66: punce | C66: 3.3 | D66: 3.5 | E66: 4 | F66: 4.076923077 | G66: 4.615384615 | J66: punce | K66: 0.2 | L66: 0.5 | M66: 0.07692307692
A67: potopisna predavanja | B67: fantje | C67: 3 | D67: 2.166666667 | E67: 3.375 | F67: 3.857142857 | G67: 3.769230769 | I67: razlika | J67: fantje | K67: =D67-C67 -> -0.8333333333 | L67: 1.208333333 | M67: 0.4821428571
B68: punce | C68: 3 | D68: 3.333333333 | E68: 4.571428571 | F68: 2.833333333 | G68: 3.916666667 | J68: punce | K68: 0.3333333333 | L68: 1.238095238 | M68: -1.738095238
A69: kino, gledališče | B69: fantje | C69: 4.833333333 | D69: 4.833333333 | E69: 4.375 | F69: 4.5 | G69: 4.923076923 | I69: razlika | J69: fantje | K69: =D69-C69 -> 0 | L69: -0.4583333333 | M69: 0.125
B70: punce | C70: 4.4 | D70: 4.555555556 | E70: 4.714285714 | F70: 4.6 | G70: 4.846153846 | J70: punce | K70: 0.1555555556 | L70: 0.1587301587 | M70: -0.1142857143
A71: prednovoletna ali pustna zabava | B71: fantje | C71: 2.583333333 | D71: 2.833333333 | E71: 3 | F71: 3 | G71: 4.846153846 | I71: razlika | J71: fantje | K71: 0.25 | L71: 0.1666666667 | M71: 0
B72: punce | C72: 3.9 | D72: 3 | E72: 3.857142857 | F72: 4.4 | G72: 4.846153846 | J72: punce | K72: -0.9 | L72: 0.8571428571 | M72: 0.5428571429
A73: miklavževanje | B73: fantje | G73: 4.692307692 | I73: razlika | J73: fantje
B74: punce | G74: 4.846153846 | J74: punce
A75: turnir v Naseljencih otoka Katan | B75: fantje | G75: 4.769230769 | I75: razlika | J75: fantje
B76: punce | G76: 4.307692308 | J76: punce
A78: OZNAČI, KOLIKO VEŠ O TEM:
C79: 2004 | D79: 2005 | E79: 2006 | F79: 2007 | G79: 2008 | K79: 2004-05 | L79: 2005-06 | M79: 2006-07 | N79: 2007-08
A80: Baden-Powell | B80: fantje | D80: 2.666666667 | E80: 3.142857143 | F80: 3.714285714 | G80: 3.615384615 | I80: razlika | J80: fantje | L80: =E80-D80 -> 0.4761904762 | M80: =F80-E80 -> 0.5714285714
B81: punce | D81: 2.444444444 | E81: 2.571428571 | F81: 3.2 | G81: 3.230769231 | J81: punce | L81: 0.126984127 | M81: 0.6285714286
A82: orientacija | B82: fantje | D82: 3.666666667 | E82: 3.1875 | F82: 3.285714286 | G82: 3.538461538 | I82: razlika | J82: fantje | L82: -0.4791666667 | M82: 0.09821428571
B83: punce | D83: 2.666666667 | E83: 2.785714286 | F83: 3.666666667 | G83: 3 | J83: punce | L83: 0.119047619 | M83: 0.880952381
A84: vozli | B84: fantje | D84: 2.833333333 | E84: 3.75 | F84: 4.142857143 | G84: 3.884615385 | I84: razlika | J84: fantje | L84: 0.9166666667 | M84: 0.3928571429
B85: punce | D85: 2.888888889 | E85: 3.714285714 | F85: 3.333333333 | G85: 3.923076923 | J85: punce | L85: 0.8253968254 | M85: -0.380952381
A86: vezave | B86: fantje | D86: 2.5 | E86: 3.9875 | F86: 4.571428571 | G86: 4.038461538 | I86: razlika | J86: fantje | L86: 1.4875 | M86: 0.5839285714
B87: punce | D87: 3 | E87: 3.285714286 | F87: 3.714285714 | G87: 3.230769231 | J87: punce | L87: 0.2857142857 | M87: 0.4285714286
A88: taborne zgradbe | B88: fantje | D88: 4.166666667 | E88: 3.625 | F88: 3.714285714 | G88: 4.038461538 | I88: razlika | J88: fantje | L88: -0.5416666667 | M88: 0.08928571429
B89: punce | D89: 2.333333333 | E89: 3.214285714 | F89: 3.266666667 | G89: 3 | J89: punce | L89: 0.880952381 | M89: 0.05238095238
A90: šotor | B90: fantje | D90: 4.333333333 | E90: 3.5625 | F90: 4.142857143 | G90: 4.192307692 | I90: razlika | J90: fantje | L90: -0.7708333333 | M90: 0.5803571429
B91: punce | D91: 3 | E91: 3.857142857 | F91: 4.066666667 | G91: 3.833333333 | J91: punce | L91: 0.8571428571 | M91: 0.2095238095
A92: bivak | B92: fantje | D92: 3 | E92: 3.5 | F92: 4.857142857 | G92: 4.153846154 | I92: razlika | J92: fantje | L92: 0.5 | M92: 1.357142857
B93: punce | D93: 1.888888889 | E93: 3.142857143 | F93: 3.8 | G93: 3.230769231 | J93: punce | L93: 1.253968254 | M93: 0.6571428571
A94: ogenj | B94: fantje | D94: 4 | E94: 3.625 | F94: 5 | G94: 4.423076923 | I94: razlika | J94: fantje | L94: -0.375 | M94: 1.375
B95: punce | D95: 3.25 | E95: 3.642857143 | F95: 3.5 | G95: 3.923076923 | J95: punce | L95: 0.3928571429 | M95: -0.1428571429
A96: kuhanje | B96: fantje | D96: 2.8 | E96: 3.5 | F96: 4 | G96: 3.923076923 | I96: razlika | J96: fantje | L96: 0.7 | M96: 0.5
B97: punce | D97: 3.888888889 | E97: 4.214285714 | F97: 4.533333333 | G97: 4.166666667 | J97: punce | L97: 0.3253968254 | M97: 0.319047619
A98: morse | B98: fantje | D98: 2 | E98: 2.625 | F98: 2.428571429 | G98: 2.192307692 | I98: razlika | J98: fantje | L98: 0.625 | M98: -0.1964285714
B99: punce | D99: 2.777777778 | E99: 3.428571429 | F99: 1.928571429 | G99: 1.833333333 | J99: punce | L99: 0.6507936508 | M99: -1.5
A100: vreme | B100: fantje | D100: 2.833333333 | E100: 3.25 | F100: 3.142857143 | G100: 3.5 | I100: razlika | J100: fantje | L100: 0.4166666667 | M100: -0.1071428571
B101: punce | D101: 2.888888889 | E101: 3.285714286 | F101: 3.666666667 | G101: 3.916666667 | J101: punce | L101: 0.3968253968 | M101: 0.380952381
A102: prva pomoč | B102: fantje | D102: 3 | E102: 3.428571429 | F102: 3.571428571 | G102: 3.769230769 | I102: razlika | J102: fantje | L102: 0.4285714286 | M102: 0.1428571429
B103: punce | D103: 3.222222222 | E103: 3.928571429 | F103: 3.8 | G103: 4.25 | J103: punce | L103: 0.7063492063 | M103: -0.1285714286
A104: živali | B104: fantje | D104: 3.333333333 | E104: 2.6875 | F104: 2.142857143 | G104: 3.083333333 | I104: razlika | J104: fantje | L104: -0.6458333333 | M104: -0.5446428571
B105: punce | D105: 2.444444444 | E105: 2.428571429 | F105: 2.714285714 | G105: 3.769230769 | J105: punce | L105: -0.01587301587 | M105: 0.2857142857
A106: gobe in rastline | B106: fantje | D106: 3.166666667 | E106: 2.8625 | F106: 3.214285714 | G106: 3.461538462 | I106: razlika | J106: fantje | L106: -0.3041666667 | M106: 0.3517857143
B107: punce | D107: 2.666666667 | E107: 2.5 | F107: 2.642857143 | G107: 3.923076923 | J107: punce | L107: -0.1666666667 | M107: 0.1428571429
A108: merjenje razdalj | B108: fantje | D108: 2.2 | E108: 3 | F108: 3.285714286 | G108: 3.269230769 | I108: razlika | J108: fantje | L108: 0.8 | M108: 0.2857142857
B109: punce | D109: 2.666666667 | E109: 2.571428571 | F109: 2.857142857 | G109: 2.583333333 | J109: punce | L109: -0.09523809524 | M109: 0.2857142857
A110: sekanje in žaganje | B110: fantje | D110: 3.5 | E110: 4.0625 | F110: 4.571428571 | G110: 4.153846154 | I110: razlika | J110: fantje | L110: 0.5625 | M110: 0.5089285714
B111: punce | D111: 2.333333333 | E111: 3.071428571 | F111: 3.25 | G111: 3.230769231 | J111: punce | L111: 0.7380952381 | M111: 0.1785714286
A113: naša četa je (velikosti): | B113: fantje | F113: 1.375 | G113: 2.5 | I113: razlika | J113: fantje | M113: =F113-E113 -> 1.375
A114: 1-majhna,2-ravno prav,3-prevelika | B114: punce | F114: 1.923076923 | G114: 3.307692308 | J114: punce | M114: =F114-E114 -> 1.923076923
A115: ODHODI/PRIHODI V ČETO: | B115: 2003-04 | C115: 2004-05 | D115: 2005-06 | E115: 2006-07 | F115: 2007-08 | G115: 2008-09 | H115: razlika | J115: 2003-04 | K115: 2004-05 | L115: 2005-06 | M115: 2006-07 | N115: 2007-08
A116: odhod v PP | B116: 5 | C116: 3 | D116: 1 | E116: 1 | F116: 2 | G116: 10 | H116: odhod v PP | J116: =C116-B116 -> -2 | K116: -2 | L116: 0 | M116: 1 | N116: 8
A117: odhod iz skavtov | B117: 9 | C117: 5 | D117: 5 | E117: 2 | F117: 0 | G117: 1 | H117: odhod iz skavtov | J117: -4 | K117: 0 | L117: -3 | M117: -2 | N117: 1
A118: prihod novincev | B118: 6 | C118: 15 | D118: 4 | E118: 14 | F118: 13 | H118: prihod novincev | J118: 9 | K118: -11 | L118: 10 | M118: -1 | N118: -13
A119: vseh v četi | B119: 20 | C119: 28 | D119: 25 | E119: 34 | F119: 43 | H119: vseh v četi | J119: 8 | K119: -3 | L119: 9 | M119: 9 | N119: -43

Sheet primerjava 2004-2008 - grafično
A1: AKTIVNOSTI:
A2: srečanje čete
A21: srečanja voda
A23: legenda:
A24: 1 = 2'004
A25: 2 = 2005
A26: 3 = 2006
A27: 4 = 2007
A28: 5 = 2008
A41: jesenovanje
A43: legenda:
A44: 1 = 2'004
A45: 2 = 2005
A46: 3 = 2006
A47: 4 = 2007
A48: 5 = 2008
A61: zimovanje
A63: legenda:
A64: 1 = 2'004
A65: 2 = 2005
A66: 3 = 2006
A67: 4 = 2007
A68: 5 = 2008
A81: obljube
A83: legenda:
A84: 1 = 2'004
A85: 2 = 2005
A86: 3 = 2006
A87: 4 = 2007
A88: 5 = 2008
A101: poletni tabor
A103: legenda:
A104: 1 = 2'004
A105: 2 = 2005
A106: 3 = 2006
A107: 4 = 2007
A108: 5 = 2008
A121: vodov potep med letom
A123: legenda:
A124: 1 = 2'004
A125: 2 = 2005
A126: 3 = 2006
A127: 4 = 2007
A128: 5 = 2008
A141: aktivnosti na prostem
A143: legenda:
A144: 1 = 2'004
A145: 2 = 2005
A146: 3 = 2006
A147: 4 = 2007
A148: 5 = 2008
A161: skavtski izpit
A163: legenda:
A164: 1 = 2'004
A165: 2 = 2005
A166: 3 = 2006
A167: 4 = 2007
A168: 5 = 2008
A181: luč miru iz Betlehema
A183: legenda:
A184: 1 = 2'004
A185: 2 = 2005
A186: 3 = 2006
A187: 4 = 2007
A188: 5 = 2008
A201: žive jaslice
A203: legenda:
A204: 1 = 2'004
A205: 2 = 2005
A206: 3 = 2006
A207: 4 = 2007
A208: 5 = 2008
A221: veščine
A223: legenda:
A224: 1 = 2'004
A225: 2 = 2005
A226: 3 = 2006
A227: 4 = 2007
A228: 5 = 2008
A241: duhovnost
A243: legenda:
A244: 1 = 2'004
A245: 2 = 2005
A246: 3 = 2006
A247: 4 = 2007
A248: 5 = 2008
A261: skavtske maše
A263: legenda:
A264: 1 = 2'004
A265: 2 = 2005
A266: 3 = 2006
A267: 4 = 2007
A268: 5 = 2008
A281: jutranja telovadba
A283: legenda:
A284: 1 = 2'004
A285: 2 = 2005
A286: 3 = 2006
A287: 4 = 2007
A288: 5 = 2008
A301: akcija
A303: legenda:
A304: 1 = 2'004
A305: 2 = 2005
A306: 3 = 2006
A307: 4 = 2007
A308: 5 = 2008
A321: orientacija
A323: legenda:
A324: 1 = 2'004
A325: 2 = 2005
A326: 3 = 2006
A327: 4 = 2007
A328: 5 = 2008
A341: pot preživetja
A343: legenda:
A344: 1 = 2'004
A345: 2 = 2005
A346: 3 = 2006
A347: 4 = 2007
A348: 5 = 2008
A361: sodelovanje z drugimi skavti
A363: legenda:
A364: 1 = 2'004
A365: 2 = 2005
A366: 3 = 2006
A367: 4 = 2007
A368: 5 = 2008
A381: razne skupinske zabavne igre
A383: legenda:
A384: 1 = 2'004
A385: 2 = 2005
A386: 3 = 2006
A387: 4 = 2007
A388: 5 = 2008
A401: velika igra (celodnenva, kot na taboru)
A403: legenda:
A404: 1 = 2'004
A405: 2 = 2005
A406: 3 = 2006
A407: 4 = 2007
A408: 5 = 2008
A421: skavtska znanja (vozli, zgradbe, orient..
A423: legenda:
A424: 1 = 2'004
A425: 2 = 2005
A426: 3 = 2006
A427: 4 = 2007
A428: 5 = 2008
A441: različne delavnice
A443: legenda:
A444: 1 = 2'004
A445: 2 = 2005
A446: 3 = 2006
A447: 4 = 2007
A448: 5 = 2008
A461: delavnice z učenjem ročnih spretnosti
A463: legenda:
A464: 1 = 2'004
A465: 2 = 2005
A466: 3 = 2006
A467: 4 = 2007
A468: 5 = 2008
A481: šport in športne igre
A484: legenda:
A485: 1 = 2'004
A486: 2 = 2005
A487: 3 = 2006
A488: 4 = 2007
A489: 5 = 2008
A501: petje
A504: legenda:
A505: 1 = 2'004
A506: 2 = 2005
A507: 3 = 2006
A508: 4 = 2007
A509: 5 = 2008
A521: zlata knjiga voda
A524: legenda:
A525: 1 = 2'004
A526: 2 = 2005
A527: 3 = 2006
A528: 4 = 2007
A529: 5 = 2008
A541: praznovanje rojstnih dni na skavtih
A544: legenda:
A545: 1 = 2'004
A546: 2 = 2005
A547: 3 = 2006
A548: 4 = 2007
A549: 5 = 2008
A561: všečnost skavtske sobe
A564: legenda:
A565: 1 = 2004
A566: 2 = 2005
A567: 3 = 2006
A568: 4 = 2007
A569: 5 = 2008
A581: zbiralne akcije papirja za zastonj tabor
A584: legenda:
... 156 more rows
